[Event "22nd Hoogeveen Open 2018"]
[Site "Hoogeveen"]
[Date "2018.10.26"]
[Round "8"]
[White "De Vries, Emma"]
[Black "Boghossian, Wahe"]
[Result "0-1"]
[ECO "B52"]
[WhiteElo "1905"]
[BlackElo "1748"]
[Annotator "NA"]
[PlyCount "86"]
[EventDate "2018.10.20"]
[EventType "swiss"]
[EventCountry "NED"]
[SourceTitle "playchess.com"]
[Source "ChessBase"]
[SourceQuality "1"]
[TimeControl "40/5400+30:1800+30"]

1. e4 {[%emt 0:00:00]} c5 {[%emt 0:00:00]} 2. Nf3 {[%emt 0:00:00]} d6 {[%emt 0:00:00]} 3. Bb5+ {[%emt 0:00:00]} Bd7 {[%emt 0:00:11]} 4. Bxd7+ {[%emt 0:00:00]} Qxd7 {[%emt 0:01:29]} 5. O-O {[%emt 0:00:12] LiveBook: 3529 Games} Nc6 {[%emt 0:00:47]} 6. c3 {[%emt 0:01:11]} Nf6 {[%emt 0:01:11]} 7. Re1 {[%emt 0:00:25]} e6 {[%emt 0:01:25]} 8. d4 {[%emt 0:00:31]} cxd4 {[%emt 0:00:55]} 9. cxd4 {[%emt 0:00:05]} Be7 {[%emt 0:00:53]} 10. Nc3 {[%emt 0:07:35]} O-O {[%emt 0:01:04]} 11. d5 $11 {[%emt 0:06:22]} Ne5 {[%emt 0:14:09]} 12. b3 {[%emt 0:04:59]} Nxf3+ {[%emt 0:17:05]} 13. Qxf3 {[%emt 0:00:38]} Rac8 {[%emt 0:00:27]} 14. Bb2 {[%emt 0:03:29]} e5 {[%emt 0:00:51]} 15. Qe3 {[%emt 0:05:50]} b5 {[%emt 0:08:03]} 16. Qe2 {[%emt 0:03:59]} Rb8 {[%emt 0:02:34]} 17. a4 {[%emt 0:07:17]} b4 {[%emt 0:06:55]} 18. Nd1 {[%emt 0:00:53]} h6 {[%emt 0:02:23]} 19. Bc1 {[%emt 0:04:58]} Qc7 {[%emt 0:05:47]} 20. Qd3 {[%emt 0:07:49]} Rfc8 {[%emt 0:03:32]} 21. Re2 {[%emt 0:02:50]} Nd7 {[%emt 0:03:37]} 22. Qg3 {[%emt 0:04:43]} Kh8 {[%emt 0:00:53]} 23. Qh3 {[%emt 0:09:48]} Kg8 {[%emt 0:06:01]} 24. Bb2 {[%emt 0:07:13]} Nc5 {[%emt 0:02:57]} 25. Rc1 {[%emt 0:00:21]} Qd7 {[%emt 0:01:26]} 26. Qg3 {[%emt 0:04:53]} Bg5 {[%emt 0:02:46]} 27. Rc4 {[%emt 0:00:57]} f5 {[%emt 0:01:52]} 28. exf5 {[%emt 0:06:22]} Qxf5 {[%emt 0:00:01]} 29. Rec2 {[%emt 0:01:52]} Rf8 {[%emt 0:01:47]} 30. Ne3 {[%emt 0:01:48]} Qd3 {[%emt 0:01:51]} 31. Rxc5 {[%emt 0:02:05]} Bxe3 {[%emt 0:01:26]} 32. h3 {[%emt 0:04:34]} Qd1+ {[%emt 0:02:17]} 33. Kh2 {[%emt 0:00:07]} Bxc5 {[%emt 0:00:08]} 34. Rxc5 {[%emt 0:01:05]} dxc5 {[%emt 0:00:35]} 35. Qxe5 {[%emt 0:00:13]} Rb7 {[%emt 0:00:49]} 36. Qe6+ {[%emt 0:00:28]} Rbf7 {[%emt 0:00:49]} 37. d6 {[%emt 0:00:23]} Qc2 {[%emt 0:04:20]} 38. Be5 {[%emt 0:00:38]} Qf5 {[%emt 0:00:15]} 39. Qd5 {[%emt 0:00:10]} Re8 {[%emt 0:01:09]} 40. f4 {[%emt 0:00:09]} g5 {[%emt 0:02:25]} 41. g4 {[%emt 0:32:23]} Qc2+ {[%emt 0:03:17]} 42. Kg3 {[%emt 0:00:00]} Rxe5 {[%emt 0:05:52]} 43. Qxe5 {[%emt 0:00:00]} Qc3+ {[%emt 0:00:14]} 0-1

[Event "22nd Hoogeveen Open 2018"]
[Site "Hoogeveen"]
[Date "2018.10.26"]
[Round "8"]
[White "Kutchoukov, Daniel"]
[Black "Van Randtwijk, Mick"]
[Result "0-1"]
[ECO "B23"]
[WhiteElo "1882"]
[BlackElo "1979"]
[Annotator "NA"]
[PlyCount "92"]
[EventDate "2018.10.20"]
[EventType "swiss"]
[EventCountry "NED"]
[SourceTitle "playchess.com"]
[Source "ChessBase"]
[SourceQuality "1"]
[TimeControl "40/5400+30:1800+30"]

1. e4 {[%emt 0:00:00]} c5 {[%emt 0:00:00]} 2. Nc3 {[%emt 0:00:00]} d6 {[%emt 0:00:00]} 3. d4 {[%emt 0:00:00]} cxd4 {[%emt 0:00:20]} 4. Qxd4 {[%emt 0:00:00]} Nc6 {[%emt 0:00:07]} 5. Qd2 {[%emt 0:00:00]} g6 {[%emt 0:01:45]} 6. b3 {[%emt 0:00:15] LiveBook: 28 Games} Bg7 {[%emt 0:00:24]} 7. Bb2 {[%emt 0:00:12]} Nf6 {[%emt 0:02:00]} 8. O-O-O {[%emt 0:01:59]} O-O {[%emt 0:00:48]} 9. f3 {[%emt 0:02:11]} Qa5 {[%emt 0:08:05]} 10. Kb1 {[%emt 0:02:58]} Be6 {[%emt 0:00:32]} 11. h4 $11 {[%emt 0:05:00]} Rfc8 {[%emt 0:07:55]} 12. Nge2 {[%emt 0:03:38]} b5 {[%emt 0:05:06]} 13. Nf4 {[%emt 0:07:15]} Bh6 {[%emt 0:11:52]} 14. g3 {[%emt 1:01:55]} Ne5 {[%emt 0:10:44]} 15. Ncd5 {[%emt 0:02:55]} Qxd2 {[%emt 0:00:10]} 16. Nxf6+ {[%emt 0:00:14]} exf6 {[%emt 0:00:07]} 17. Rxd2 {[%emt 0:00:07]} Nxf3 {[%emt 0:06:55]} 18. Rxd6 {[%emt 0:01:05]} Rd8 {[%emt 0:00:04]} 19. Rxd8+ {[%emt 0:00:45]} Rxd8 {[%emt 0:00:06]} 20. Bxb5 {[%emt 0:00:23]} Nd2+ {[%emt 0:00:07]} 21. Ka1 {[%emt 0:07:11]} Nxe4 {[%emt 0:00:06]} 22. Re1 {[%emt 0:02:17]} f5 {[%emt 0:03:03]} 23. Ne2 {[%emt 0:00:33]} Bf8 {[%emt 0:07:39]} 24. Kb1 {[%emt 0:00:33]} Bc5 {[%emt 0:02:28]} 25. Bd3 {[%emt 0:00:31]} Bf2 {[%emt 0:01:17]} 26. Rh1 {[%emt 0:00:30]} Nxg3 {[%emt 0:01:04]} 27. Nxg3 {[%emt 0:00:24]} Bxg3 {[%emt 0:00:05]} 28. Bf6 {[%emt 0:00:35]} Re8 {[%emt 0:01:50]} 29. c4 {[%emt 0:00:31]} f4 {[%emt 0:00:43]} 30. Rf1 {[%emt 0:00:31]} Bh3 {[%emt 0:00:42]} 31. Rg1 {[%emt 0:00:27]} Bf2 {[%emt 0:03:33]} 32. Rh1 {[%emt 0:00:31]} Bg4 {[%emt 0:00:30]} 33. Kc2 {[%emt 0:00:30]} Bc5 {[%emt 0:01:00]} 34. Rf1 {[%emt 0:00:28]} f3 {[%emt 0:00:10]} 35. Kd2 {[%emt 0:00:32]} f2 {[%emt 0:01:29]} 36. Bc3 {[%emt 0:00:30]} Bh3 {[%emt 0:01:29]} 37. Ra1 {[%emt 0:00:30]} Rd8 {[%emt 0:00:20]} 38. Kc2 {[%emt 0:00:32]} Rxd3 {[%emt 0:00:42]} 39. Kxd3 {[%emt 0:00:15]} f1=Q+ {[%emt 0:00:06]} 40. Rxf1 {[%emt 0:00:13]} Bxf1+ {[%emt 0:00:06]} 41. Ke4 {[%emt 0:30:30]} Bg2+ {[%emt 0:30:48]} 42. Ke5 {[%emt 0:00:25]} Kf8 {[%emt 0:00:32]} 43. b4 {[%emt 0:00:06]} Be7 {[%emt 0:00:11]} 44. a4 {[%emt 0:00:00]} Ke8 {[%emt 0:00:00]} 45. a5 {[%emt 0:00:00]} Kd7 {[%emt 0:00:00]} 46. a6 {[%emt 0:00:00]} Kc6 {[%emt 0:00:00]} 0-1

[Event "22nd Hoogeveen Open 2018"]
[Site "Hoogeveen"]
[Date "2018.10.26"]
[Round "8"]
[White "Husers, Yannic"]
[Black "Bleeker, Kasper"]
[Result "0-1"]
[ECO "A02"]
[WhiteElo "1866"]
[BlackElo "1891"]
[Annotator "NA"]
[PlyCount "52"]
[EventDate "2018.10.20"]
[EventType "swiss"]
[EventCountry "NED"]
[SourceTitle "playchess.com"]
[Source "ChessBase"]
[SourceQuality "1"]
[TimeControl "40/5400+30:1800+30"]

1. f4 {[%emt 0:00:00]} e5 {[%emt 0:00:00]} 2. fxe5 {[%emt 0:00:00]} d6 {[%emt 0:00:03]} 3. exd6 {[%emt 0:00:00]} Bxd6 {[%emt 0:00:06]} 4. Nf3 {[%emt 0:00:00]} Nc6 {[%emt 0:01:35]} 5. d4 {[%emt 0:01:48]} Bg4 {[%emt 0:02:24]} 6. Be3 {[%emt 0:03:52]} (6. e3 $16) 6... Nf6 {[%emt 0:01:21]} 7. Nc3 {[%emt 0:01:14]} Qe7 {[%emt 0:04:43]} 8. Kf2 $19 {[%emt 0:07:19]} (8. Qd2 $15) 8... O-O-O {[%emt 0:04:32]} 9. Qd2 {[%emt 0:24:24]} Bb4 {[%emt 0:15:51]} 10. Kg1 {[%emt 0:01:38]} Rhe8 {[%emt 0:02:29]} 11. Bf2 {[%emt 0:03:20]} Ne4 {[%emt 0:23:59]} 12. Qf4 {[%emt 0:21:26]} Nxf2 {[%emt 0:02:13]} 13. Kxf2 {[%emt 0:01:46]} Bxf3 {[%emt 0:04:58]} 14. exf3 {[%emt 0:00:47]} Rxd4 {[%emt 0:00:58]} 15. Ne4 {[%emt 0:01:30]} Bd2 {[%emt 0:21:11]} 16. Qf5+ {[%emt 0:05:40]} Kb8 {[%emt 0:00:07]} 17. Bd3 {[%emt 0:01:55]} g6 {[%emt 0:01:44]} 18. Qb5 {[%emt 0:07:27]} Rb4 {[%emt 0:01:25]} 19. Qd5 {[%emt 0:01:30]} Rd8 {[%emt 0:01:06]} 20. Qxd8+ {[%emt 0:00:25]} Qxd8 {[%emt 0:00:29]} 21. Nxd2 {[%emt 0:00:08]} Qd4+ {[%emt 0:01:13]} 22. Kf1 {[%emt 0:00:06]} a6 {[%emt 0:02:16]} 23. Re1 {[%emt 0:00:58]} Qxb2 {[%emt 0:01:36]} 24. Nc4 {[%emt 0:00:26]} Qxa2 {[%emt 0:00:26]} 25. Kf2 {[%emt 0:00:23]} Rxc4 {[%emt 0:00:33]} 26. Bxc4 {[%emt 0:00:00]} Qxc4 {[%emt 0:00:02]} 0-1

[Event "22nd Hoogeveen Open 2018"]
[Site "Hoogeveen"]
[Date "2018.10.26"]
[Round "8"]
[White "Brands, Kevin"]
[Black "Oord, Raymon"]
[Result "1/2-1/2"]
[ECO "E01"]
[WhiteElo "1862"]
[BlackElo "1900"]
[Annotator "NA"]
[PlyCount "85"]
[EventDate "2018.10.20"]
[EventType "swiss"]
[EventCountry "NED"]
[SourceTitle "playchess.com"]
[Source "ChessBase"]
[SourceQuality "1"]
[TimeControl "40/5400+30:1800+30"]

1. d4 {[%emt 0:00:00]} Nf6 {[%emt 0:00:00]} 2. c4 {[%emt 0:00:00]} e6 {[%emt 0:00:06]} 3. g3 {[%emt 0:01:04]} d5 {[%emt 0:00:36]} 4. Nf3 {[%emt 0:00:41]} Nbd7 {[%emt 0:00:44]} 5. Bg2 {[%emt 0:03:34]} c6 {[%emt 0:01:03]} 6. O-O {[%emt 0:02:13]} Bd6 {[%emt 0:00:36]} 7. Nc3 {[%emt 0:02:46] LiveBook: 169 Partien} Ne4 {[%emt 0:05:45]} (7... dxc4 $11 {keeps the balance.} 8. Nd2 Nb6) 8. Nxe4 {[%emt 0:06:57]} dxe4 $16 {[%emt 0:00:03]} 9. Ng5 {[%emt 0:16:45]} f5 {[%emt 0:03:41]} 10. Nxe6 {[%emt 0:04:20]} Qf6 {[%emt 0:02:46]} 11. d5 {[%emt 0:02:01]} Nb6 {[%emt 0:11:43]} 12. Bg5 {[%emt 0:02:47]} Qg6 {[%emt 0:06:02]} 13. Qd4 {[%emt 0:05:05]} Bxe6 {[%emt 0:08:10]} 14. dxe6 {[%emt 0:00:03]} Qxe6 {[%emt 0:03:26]} 15. Qxg7 {[%emt 0:15:51]} Be5 {[%emt 0:09:39]} 16. Qxb7 {[%emt 0:02:03]} O-O {[%emt 0:04:00]} 17. Qe7 {[%emt 0:06:35]} Qxe7 {[%emt 0:03:58]} 18. Bxe7 {[%emt 0:00:03]} Rf7 {[%emt 0:00:41]} 19. Ba3 {[%emt 0:06:50]} Nxc4 {[%emt 0:01:56]} 20. Rac1 {[%emt 0:00:08]} Nxa3 {[%emt 0:01:13]} 21. bxa3 {[%emt 0:00:03]} Rf6 {[%emt 0:01:16]} 22. Rc5 {[%emt 0:01:50]} Bd4 {[%emt 0:01:41]} 23. Rc4 {[%emt 0:00:56]} Bb6 {[%emt 0:00:38]} 24. Rfc1 {[%emt 0:00:07]} Rd8 {[%emt 0:05:06]} 25. e3 {[%emt 0:04:47]} c5 {[%emt 0:02:04]} 26. Bh3 {[%emt 0:01:45]} h5 {[%emt 0:01:58]} 27. a4 {[%emt 0:00:55]} a5 {[%emt 0:00:23]} 28. Rxc5 {[%emt 0:00:59]} Bxc5 {[%emt 0:03:51]} 29. Rxc5 {[%emt 0:00:03]} Rd2 {[%emt 0:05:08]} 30. Rxf5 {[%emt 0:03:01]} Kg7 {[%emt 0:01:47]} 31. Rxf6 {[%emt 0:01:47]} Kxf6 {[%emt 0:00:03]} 32. Bf1 {[%emt 0:00:29]} Rxa2 {[%emt 0:00:50]} 33. Bb5 {[%emt 0:00:02]} Kg5 {[%emt 0:03:43]} 34. Kg2 {[%emt 0:00:58]} h4 {[%emt 0:00:55]} 35. Bc6 {[%emt 0:01:01]} h3+ {[%emt 0:03:52]} 36. Kxh3 {[%emt 0:00:40]} Rxf2 {[%emt 0:00:17]} 37. Bxe4 {[%emt 0:00:03]} Re2 {[%emt 0:00:33]} 38. Bc6 {[%emt 0:01:09]} Rxe3 {[%emt 0:00:41]} 39. Bb5 {[%emt 0:01:25]} Rb3 {[%emt 0:01:19]} 40. Bd7 {[%emt 0:01:46]} Rd3 {[%emt 0:03:28]} 41. Bb5 {[%emt 0:30:38]} Rb3 {[%emt 0:30:08]} 42. Kg2 {[%emt 0:05:13]} Rb2+ {[%emt 0:00:35]} 43. Kh3 {[%emt 0:00:12]} 1/2-1/2

[Event "22nd Hoogeveen Open 2018"]
[Site "Hoogeveen"]
[Date "2018.10.26"]
[Round "8"]
[White "Achuthan, Dylan"]
[Black "Mellema, Andries"]
[Result "0-1"]
[ECO "A05"]
[WhiteElo "1751"]
[BlackElo "2140"]
[Annotator "NA"]
[PlyCount "76"]
[EventDate "2018.10.20"]
[EventType "swiss"]
[EventCountry "NED"]
[SourceTitle "playchess.com"]
[Source "ChessBase"]
[SourceQuality "1"]
[TimeControl "40/5400+30:1800+30"]

1. Nf3 {[%emt 0:00:00]} Nf6 {[%emt 0:08:39]} 2. b3 {[%emt 0:00:00]} g6 {[%emt 0:08:21]} 3. Bb2 {[%emt 0:00:15]} Bg7 {[%emt 0:00:07]} 4. g4 {[%emt 0:01:28]} h6 {[%emt 0:03:39]} 5. h4 $15 {[%emt 0:03:26]} d5 {[%emt 0:16:07]} 6. Bh3 {[%emt 0:04:18]} c5 {[%emt 0:04:56]} 7. e3 {[%emt 0:02:31]} Nc6 {[%emt 0:01:29]} 8. Qe2 {[%emt 0:01:33]} Bd7 {[%emt 0:08:21]} 9. d3 {[%emt 0:06:44]} Qc8 {[%emt 0:06:51]} 10. Nbd2 {[%emt 0:18:11]} Bxg4 {[%emt 0:08:57]} 11. Bxg4 {[%emt 0:00:07]} Qxg4 {[%emt 0:00:08]} 12. O-O-O {[%emt 0:00:23]} O-O-O {[%emt 0:03:11]} 13. Rdg1 {[%emt 0:02:14]} Qd7 {[%emt 0:05:57]} 14. a4 {[%emt 0:02:24]} Qc7 {[%emt 0:01:35]} 15. Kb1 {[%emt 0:02:47]} Kb8 {[%emt 0:01:28]} 16. Nf1 {[%emt 0:06:38]} Nh5 {[%emt 0:03:20]} 17. Bxg7 {[%emt 0:01:28]} Nxg7 {[%emt 0:00:08]} 18. Ng3 {[%emt 0:00:07]} Na5 {[%emt 0:05:39]} 19. d4 {[%emt 0:05:43]} f6 {[%emt 0:03:50]} 20. Ka2 {[%emt 0:05:34]} Rc8 {[%emt 0:02:29]} 21. Rc1 {[%emt 0:00:39]} Qb6 {[%emt 0:00:59]} 22. Rb1 {[%emt 0:10:03]} Nc6 {[%emt 0:01:09]} 23. c3 {[%emt 0:01:35]} e5 {[%emt 0:01:32]} 24. Rhd1 {[%emt 0:04:59]} Rhd8 {[%emt 0:01:08]} 25. Qb5 {[%emt 0:03:23]} cxd4 {[%emt 0:00:18]} 26. Qxb6 {[%emt 0:01:19]} axb6 {[%emt 0:00:01]} 27. exd4 {[%emt 0:00:01]} e4 {[%emt 0:01:37]} 28. Nh2 {[%emt 0:01:41]} f5 {[%emt 0:00:12]} 29. Ne2 {[%emt 0:00:24]} Ne6 {[%emt 0:00:49]} 30. Rg1 {[%emt 0:00:58]} g5 {[%emt 0:00:22]} 31. Ng3 {[%emt 0:00:21]} Ne7 {[%emt 0:01:01]} 32. Rbc1 {[%emt 0:01:11]} Nf4 {[%emt 0:00:36]} 33. Rc2 {[%emt 0:02:02]} Nd3 {[%emt 0:00:50]} 34. Kb1 {[%emt 0:01:14]} Nf4 {[%emt 0:00:17]} 35. Ka2 {[%emt 0:00:17]} Rg8 {[%emt 0:00:25]} 36. hxg5 {[%emt 0:00:49]} hxg5 {[%emt 0:00:04]} 37. Rgc1 {[%emt 0:00:13]} Nd3 {[%emt 0:00:14]} 38. Rg1 {[%emt 0:00:44]} Nb4+ {[%emt 0:00:09]} 0-1

[Event "22nd Hoogeveen Open 2018"]
[Site "Hoogeveen"]
[Date "2018.10.27"]
[Round "9"]
[White "Miedema, David"]
[Black "Rakshitta Ravi"]
[Result "1-0"]
[ECO "A14"]
[WhiteElo "2379"]
[BlackElo "2160"]
[Annotator "NA"]
[PlyCount "115"]
[EventDate "2018.10.20"]
[EventType "swiss"]
[EventCountry "NED"]
[SourceTitle "playchess.com"]
[Source "ChessBase"]
[SourceQuality "1"]
[TimeControl "40/5400+30:1800+30"]

1. Nf3 {[%emt 0:00:00]} Nf6 {[%emt 0:01:09]} 2. c4 {[%emt 0:00:00]} e6 {[%emt 0:00:12]} 3. g3 {[%emt 0:00:00]} d5 {[%emt 0:00:05]} 4. Bg2 {[%emt 0:00:00]} Be7 {[%emt 0:00:11]} 5. O-O {[%emt 0:00:20]} O-O {[%emt 0:00:03]} 6. b3 {[%emt 0:00:40]} b6 {[%emt 0:00:09]} 7. Bb2 {[%emt 0:00:06]} Bb7 {[%emt 0:00:05]} 8. d3 {[%emt 0:05:20]} c5 {[%emt 0:00:25]} 9. cxd5 {[%emt 0:00:09]} Nxd5 {[%emt 0:00:42]} 10. a3 {[%emt 0:06:39]} Nc6 {[%emt 0:00:56] LiveBook: 5 Games} 11. e4 $146 {[%emt 0:01:40] A14: English Opening: 1...e6 with b3 by White} ({Predecessor:} 11. Ra2 Rc8 12. Nbd2 Bf6 13. Qa1 Bxb2 14. Qxb2 Qe7 15. Rc1 Rfd8 16. Nc4 Nd4 17. Raa1 Nf6 18. Nce5 Nxf3+ 19. Nxf3 {1-0 (48) Steczek,M (2350)-Seils,J (2327) Germany 2016}) 11... Nf6 {[%emt 0:01:19]} 12. e5 {[%emt 0:00:22]} Nd5 {[%emt 0:07:28]} 13. d4 {[%emt 0:00:26]} cxd4 {[%emt 0:04:51]} 14. Nxd4 {[%emt 0:01:07]} Nxd4 {[%emt 0:00:12]} 15. Qxd4 {[%emt 0:00:07]} Bc5 {[%emt 0:01:02]} (15... Rc8 $5 {[%cal Rc8c2]} 16. Rd1 Rc2 $15) 16. Qg4 {[%emt 0:01:49]} Rc8 {[%emt 0:07:31]} 17. b4 $2 {[%emt 0:09:44] [#]} (17. Nc3 $11 {und Weiss steht sicher.}) 17... Bxf2+ $2 {[%emt 0:02:13]} ({Black should try} 17... Ne3 $1 $19 {[%cal Re3g4][%mdl 512]} 18. Qe2 (18. fxe3 Bxe3+) 18... Bxg2) 18. Rxf2 {[%emt 0:00:46]} Ne3 {[%emt 0:00:16]} 19. Qe2 $1 {[%emt 0:02:33]} Nxg2 {[%emt 0:05:20]} 20. Nc3 $1 {[%emt 0:00:39]} Qg5 {[%emt 0:03:19]} (20... b5 $5) 21. Rxg2 {[%emt 0:03:38]} Bxg2 {[%emt 0:00:08]} 22. Kxg2 {[%emt 0:00:03]} Rfd8 {[%emt 0:00:05]} 23. Ne4 {[%emt 0:00:06]} Qg6 {[%emt 0:00:08]} 24. Rf1 {[%emt 0:03:22]} Rc7 {[%emt 0:01:19]} 25. Kg1 {[%emt 0:12:55]} h6 {[%emt 0:16:34]} 26. Rf2 {[%emt 0:08:50]} Rd5 {[%emt 0:02:18]} 27. Nc3 {[%emt 0:02:43]} Rd8 {[%emt 0:13:15] [#]} 28. Ne4 {[%emt 0:04:38]} (28. Nb5 $1 $16 {[%cal Rb5c7]} Rcd7 29. Nd6) 28... Rd5 {[%emt 0:00:14]} {White should try} 29. a4 $16 {[%emt 0:00:35]} Rcd7 {[%emt 0:01:29]} 30. Rf1 {[%emt 0:01:34]} Rc7 {[%emt 0:01:02]} 31. b5 {[%emt 0:02:16]} Kh7 {[%emt 0:01:01]} 32. Bc3 {[%emt 0:03:47]} Rd8 $16 {[%emt 0:02:14]} 33. Rf3 {[%emt 0:07:07]} Rdc8 {[%emt 0:01:18]} 34. Bd2 {[%emt 0:01:50]} Rc2 {[%emt 0:03:25]} 35. Nd6 {[%emt 0:05:13]} R8c7 {[%emt 0:00:48]} 36. Rf4 {[%emt 0:10:24]} Ra2 {[%emt 0:01:32]} 37. Rd4 {[%emt 0:01:24]} Qc2 {[%emt 0:03:39]} 38. Qe4+ {[%emt 0:00:44]} Qxe4 {[%emt 0:00:32]} 39. Nxe4 {[%emt 0:00:04]} Rcc2 {[%emt 0:00:05]} 40. Kf2 {[%emt 0:00:24]} Kg6 {[%emt 0:00:52]} 41. Ke3 {[%emt 0:32:31]} Ra3+ {[%emt 0:32:36]} 42. Ke2 {[%emt 0:01:35]} Rca2 {[%emt 0:00:15]} 43. Rd7 {[%emt 0:00:22]} Rxa4 {[%emt 0:00:23]} 44. Nc3 {[%emt 0:00:47]} R4a3 {[%emt 0:01:30]} 45. Nxa2 {[%emt 0:00:05]} Rxa2 {[%emt 0:00:04]} 46. Kd3 {[%emt 0:00:27]} Rb2 {[%emt 0:00:01]} 47. Kc4 {[%emt 0:00:07]} Rc2+ {[%emt 0:00:19]} 48. Kb4 {[%emt 0:00:38]} Rb2+ {[%emt 0:00:08]} 49. Kc4 {[%emt 0:00:14]} Rc2+ {[%emt 0:00:04]} 50. Bc3 {[%emt 0:01:33]} Rxh2 {[%emt 0:00:03]} 51. Rxa7 {[%emt 0:00:03]} Rg2 {[%emt 0:00:11]} 52. Rb7 {[%emt 0:02:29]} Rxg3 {[%emt 0:00:06]} 53. Rxb6 {[%emt 0:00:03]} h5 {[%emt 0:00:07]} 54. Rb8 {[%emt 0:00:04]} Kh7 {[%emt 0:00:06]} 55. b6 {[%emt 0:00:18]} h4 {[%emt 0:00:19]} 56. b7 {[%emt 0:00:12]} h3 {[%emt 0:00:06]} 57. Rd8 {[%emt 0:00:00]} Rg4+ {[%emt 0:00:00]} 58. Kb3 {[%emt 0:00:00]} 1-0

[Event "22nd Hoogeveen Open 2018"]
[Site "Hoogeveen"]
[Date "2018.10.27"]
[Round "9"]
[White "Baskin, Robert"]
[Black "Guseinov, Gadir"]
[Result "0-1"]
[ECO "A49"]
[WhiteElo "2348"]
[BlackElo "2667"]
[Annotator "RC"]
[PlyCount "72"]
[EventDate "2018.10.20"]
[EventType "swiss"]
[EventCountry "NED"]
[SourceTitle "playchess.com"]
[Source "ChessBase"]
[SourceQuality "1"]
[TimeControl "40/5400+30:1800+30"]

1. d4 {[%emt 0:00:00]} Nf6 {[%emt 0:00:00]} 2. Nf3 {[%emt 0:00:00]} g6 {[%emt 0:01:27]} 3. g3 {[%emt 0:00:01]} Bg7 {[%emt 0:00:48]} 4. Bg2 {[%emt 0:00:05]} O-O {[%emt 0:00:09]} 5. O-O {[%emt 0:00:04]} d6 {[%emt 0:00:19]} 6. b3 {[%emt 0:00:12]} c5 {[%emt 0:01:52]} 7. Bb2 {[%emt 0:00:19]} Nc6 {[%emt 0:01:11]} 8. d5 {[%emt 0:02:28]} Na5 {[%emt 0:04:22]} 9. c4 {[%emt 0:00:15]} a6 {[%emt 0:02:28]} 10. Nbd2 {[%emt 0:01:52]} b5 {[%emt 0:00:35]} 11. e4 {[%emt 0:01:43]} Rb8 {[%emt 0:00:13]} 12. Bc3 {[%emt 0:03:21]} e6 {[%emt 0:02:42]} 13. e5 {[%emt 0:12:20]} Ng4 {[%emt 0:02:02]} 14. Ne4 {[%emt 0:00:25]} b4 {[%emt 0:04:50]} 15. Bb2 {[%emt 0:00:50]} Nb7 {[%emt 0:00:40]} 16. Qc1 {[%emt 0:20:56]} Nxe5 {[%emt 0:06:31]} 17. Nxe5 {[%emt 0:00:27]} dxe5 {[%emt 0:00:06]} 18. f4 {[%emt 0:04:32]} f5 {[%emt 0:16:01]} 19. Ng5 {[%emt 0:07:10]} e4 {[%emt 0:00:44]} 20. Rd1 {[%emt 0:02:22]} exd5 {[%emt 0:05:38]} 21. cxd5 {[%emt 0:02:15]} Bxb2 {[%emt 0:02:42]} 22. Qxb2 {[%emt 0:00:07]} Qf6 {[%emt 0:00:06]} 23. Qc2 {[%emt 0:00:37]} h6 {[%emt 0:02:06]} 24. Ne6 {[%emt 0:00:07]} Bxe6 {[%emt 0:04:27]} 25. dxe6 {[%emt 0:00:04]} Qxe6 {[%emt 0:01:10]} 26. Bf1 {[%emt 0:00:17]} Kh8 {[%emt 0:01:16]} 27. Qb2+ {[%emt 0:05:50]} Qf6 {[%emt 0:00:43]} 28. Qxf6+ {[%emt 0:00:54]} Rxf6 {[%emt 0:00:02]} 29. Rd5 {[%emt 0:00:21]} Rd6 {[%emt 0:03:24]} 30. Rad1 {[%emt 0:01:18]} Rbd8 {[%emt 0:02:02]} 31. Rxd6 {[%emt 0:00:30]} Rxd6 {[%emt 0:00:05]} 32. Rd3 {[%emt 0:00:04]} Rxd3 {[%emt 0:00:04]} 33. Bxd3 {[%emt 0:00:30]} g5 {[%emt 0:00:30]} 34. Kf2 {[%emt 0:00:30]} gxf4 {[%emt 0:00:30]} 35. gxf4 {[%emt 0:00:30]} Kg7 {[%emt 0:00:30]} 36. Ke3 {[%emt 0:00:30]} Kf6 {[%emt 0:00:30]} 0-1

[Event "22nd Hoogeveen Open 2018"]
[Site "Hoogeveen"]
[Date "2018.10.27"]
[Round "9"]
[White "Bertholee, Rob"]
[Black "Ojas Kulkarni"]
[Result "0-1"]
[ECO "B02"]
[WhiteElo "2334"]
[BlackElo "2254"]
[Annotator "NA"]
[PlyCount "74"]
[EventDate "2018.10.20"]
[EventType "swiss"]
[EventCountry "NED"]
[SourceTitle "playchess.com"]
[Source "ChessBase"]
[SourceQuality "1"]
[TimeControl "40/5400+30:1800+30"]

1. e4 {[%emt 0:00:00]} Nf6 {[%emt 0:00:03]} 2. e5 {[%emt 0:00:00]} Nd5 {[%emt 0:00:17]} 3. c4 {[%emt 0:00:00]} Nb6 {[%emt 0:00:07]} 4. c5 {[%emt 0:00:00]} Nd5 {[%emt 0:00:07]} 5. Nc3 {[%emt 0:00:00]} Nxc3 {[%emt 0:00:13]} 6. dxc3 {[%emt 0:00:00]} e6 {[%emt 0:03:02]} 7. Qg4 {[%emt 0:01:30] LiveBook: 6 Games} f5 {[%emt 0:11:14] B02: Alekhine's Defence: Chase Variation and lines with early Nc3} (7... h5 $11 {remains equal.} 8. Qg3 g6) (7... Nc6 8. Nf3 f5 9. exf6 Qxf6 10. Bd3 g6 11. Bg5 Qg7 12. Be3 d6 13. cxd6 cxd6 14. O-O Be7 15. Bc4 e5 16. Qe4 Bd7 {½-½ (16) Ris,R (2415)-Adly,A (2593) Enschede 2008}) 8. Qg3 {[%emt 0:03:13]} b6 {[%emt 0:07:45]} 9. Be2 {[%emt 0:05:22]} Qe7 $1 $146 {[%emt 0:01:38]} ({Predecessor:} 9... g6 10. Bf3 c6 11. Bg5 Be7 12. h4 bxc5 13. Ne2 Ba6 14. O-O-O Bxe2 15. Bxe2 {½-½ (42) Giacometto,M (1952)-Jennings,R (1767) Edinburgh 2015}) 10. Bh5+ {[%emt 0:41:52]} g6 {[%emt 0:00:30]} 11. Bf3 {[%emt 0:00:08]} Nc6 {[%emt 0:00:18] [#]} 12. Bxc6 $1 {[%emt 0:01:21]} dxc6 {[%emt 0:00:09]} 13. Bg5 {[%emt 0:01:12]} Qxc5 {[%emt 0:10:20]} 14. Bf6 {[%emt 0:02:03]} (14. O-O-O $16) 14... Rg8 {[%emt 0:00:06] [#]} 15. O-O-O $1 {[%emt 0:01:31]} Ba6 {[%emt 0:04:27] [#]} 16. Rd4 $1 {[%emt 0:07:28]} Qa5 $2 {[%emt 0:04:51]} (16... Rg7 $16) 17. Qf3 {[%emt 0:03:07]} Bb5 {[%emt 0:03:33]} 18. Qd1 $2 {[%emt 0:05:42]} ({White should play} 18. c4 $18) 18... c5 {[%emt 0:00:53]} 19. Rd8+ {[%emt 0:00:59]} Kf7 {[%emt 0:00:47]} 20. Rd7+ {[%emt 0:02:00]} Ke8 {[%emt 0:00:39]} 21. Rd8+ {[%emt 0:01:36]} Kf7 {[%emt 0:00:03]} 22. Rxa8 {[%emt 0:00:58]} Bh6+ {[%emt 0:02:26]} 23. Kb1 {[%emt 0:00:05]} Rxa8 {[%emt 0:00:14]} 24. Nf3 {[%emt 0:10:56]} Bc6 {[%emt 0:05:22]} 25. h4 $15 {[%emt 0:05:24]} Be4+ {[%emt 0:04:57]} 26. Ka1 {[%emt 0:00:11]} Bd5 {[%emt 0:00:09]} 27. a3 {[%emt 0:01:49]} Qb5 {[%emt 0:02:25]} 28. h5 {[%emt 0:00:09]} g5 {[%emt 0:00:34]} 29. Bxg5 {[%emt 0:00:52]} Qc4 {[%emt 0:01:06]} 30. Qb1 {[%emt 0:01:44]} Bxf3 {[%emt 0:02:14]} 31. Bxh6 {[%emt 0:00:13]} Bxg2 {[%emt 0:01:46]} 32. Rg1 {[%emt 0:00:17]} Rg8 {[%emt 0:00:05]} 33. b3 {[%emt 0:02:43]} Qxc3+ {[%emt 0:01:56]} 34. Ka2 {[%emt 0:00:51]} c4 {[%emt 0:03:54]} 35. b4 {[%emt 0:00:32]} Be4 {[%emt 0:00:34]} 36. Qd1 {[%emt 0:00:15]} Qb3+ {[%emt 0:00:13]} 37. Ka1 {[%emt 0:00:15]} Qxa3# {[%emt 0:00:07]} 0-1